bitfinex/quotes_ETHUSD_20241009
["timestamp","ask_amount","ask_price","bid_price","bid_amount"]
[1728502014187,4.14878,2410.4,2410.1,0.8203]
[1728502014346,0.87518247,2410.9,2409.7,7.38]
[1728502014347,4.14911,2410.2,2409.7,8.1336]
[1728502014786,4.24986992,2410.1,2409.7,8.1336]
[1728502014942,4.14924,2410.1,2409.7,0.7536]
[1728502016183,4.14901,2410.3,2409.7,0.7536]
[1728502016488,4.24973992,2410.2,2409.7,0.9628574]
[1728502017166,0.10062992,2410.2,2410.1,0.7811]
[1728502017575,8.29724,2410.5,2410.1,0.7811]
[1728502017885,4.14857,2410.5,2410.1,0.7811]
[1728502018092,4.24893675,2410.4,2410.1,0.7811]
[1728502019749,4.1489,2410.3,2410.1,0.7811]
[1728502019951,4.14903,2410.2,2409.9,5.0]
[1728502020175,4.14947,2410.0,2409.8,0.7978]
[1728502020603,4.14954,2409.9,2409.8,0.7978]
[1728502020915,4.24952212,2409.9,2409.8,0.7978]
[1728502021485,4.24952212,2409.9,2409.7,0.2092574]
[1728502022076,4.24952212,2409.9,2409.6,13.2013]
[1728502022427,4.14982,2409.8,2409.6,8.2013]
[1728502022620,4.24952212,2409.9,2409.6,8.2013]
[1728502022822,0.09998212,2409.9,2409.6,8.2013]
[1728502023117,0.09998212,2409.9,2409.7,0.08299323]
[1728502023316,4.14906,2410.2,2409.7,0.08299323]
[1728502023775,0.09984381,2410.1,2409.8,0.63298814]
[1728502023974,0.09984381,2410.1,2410.0,0.784]
[1728502024221,4.14888,2410.3,2410.0,0.784]
[1728502024723,0.8089,2410.7,2410.0,0.784]
[1728502024872,4.14879,2410.4,2410.0,0.784]
[1728502025721,4.14853,2410.5,2410.0,0.784]
[1728502025873,0.7823,2411.3,2410.3,5.46043]
[1728502026084,0.7823,2411.3,2410.6,0.8002]
[1728502026085,4.14755,2411.1,2410.6,0.8002]
[1728502026394,4.14692,2411.5,2410.6,1.08834663]
[1728502026395,4.14733,2411.2,2410.6,1.08834663]
[1728502026707,4.14759,2411.1,2410.7,1.63795984]
[1728502027022,4.14711,2411.4,2410.9,0.8277]
[1728502027325,4.14711,2411.4,2411.0,0.08294331]
[1728502027618,4.14715,2411.3,2410.9,0.8277]
[1728502028539,4.14739,2411.2,2410.9,0.8277]
[1728502028828,4.24734381,2411.1,2410.9,0.8277]
[1728502029236,0.09984381,2411.1,2410.8,0.55]
[1728502029443,4.24734381,2411.1,2410.6,1.01698828]
[1728502029598,4.14817,2410.7,2410.4,0.06223948]
[1728502029799,4.14835,2410.6,2410.4,0.06223948]
[1728502030025,0.09984381,2410.6,2410.4,0.06223948]
[1728502030399,4.14778,2411.0,2410.5,5.0]
[1728502030600,4.14794,2410.9,2410.5,5.0]
[1728502030815,4.24778381,2410.9,2410.5,5.0]
[1728502031020,4.14802,2410.8,2410.5,5.0]
[1728502031532,0.09984381,2410.7,2410.5,5.0]
[1728502032033,4.14785,2410.9,2410.5,5.0]
[1728502032194,4.14671,2411.6,2411.2,5.0]
[1728502032391,4.14647,2411.7,2411.2,5.0]
[1728502032636,4.14705,2411.4,2411.2,5.0]
[1728502032850,4.1466,2411.7,2411.2,5.0]
[1728502033142,4.14682,2411.5,2411.2,5.0]
[1728502033500,0.0997731,2411.4,2411.2,5.08293754]
[1728502033945,4.14647,2411.7,2411.2,5.08293754]
[1728502034231,0.10001407,2411.3,2411.2,9.78024754]
[1728502034389,8.29243,2411.9,2411.4,0.7873]
[1728502034594,0.10001407,2411.8,2411.5,0.0829272]
[1728502034830,0.10001407,2411.8,2411.5,5.0829272]
[1728502034995,0.10001407,2411.8,2411.6,0.55]
[1728502035205,4.1459,2412.1,2411.6,0.55]
[1728502035206,4.14602,2412.0,2411.6,0.55]
[1728502035570,4.14612,2411.9,2411.6,0.55]
[1728502035854,4.24613407,2411.9,2411.6,0.55]
[1728502036039,0.10001407,2411.9,2411.6,0.55]
[1728502037912,0.10001407,2411.9,2411.8,5.55]
[1728502038111,7.42,2413.0,2411.8,10.58709097]
[1728502038112,4.14517,2412.5,2411.8,10.58709097]
[1728502038349,4.14532,2412.4,2412.0,0.55]
[1728502038552,4.14532,2412.4,2412.1,0.08290588]
[1728502038553,4.24533407,2412.4,2412.1,0.08290588]
[1728502039174,0.10001407,2412.4,2412.3,0.8079]
[1728502039379,4.14463,2412.8,2412.4,0.55]
[1728502039562,4.14463,2412.8,2412.3,0.8079]
[1728502039563,4.14493,2412.6,2412.3,0.8079]
[1728502040279,4.14466,2412.8,2412.3,0.8079]
[1728502040280,0.10084731,2412.5,2412.3,9.79952247]
[1728502040449,4.14466,2412.8,2412.4,0.08289564]
[1728502040655,0.10084731,2412.7,2412.5,5.55]
[1728502040843,4.14401,2413.2,2412.6,0.08288942]
[1728502041190,4.14401,2413.2,2412.7,0.55]
[1728502041191,4.14405,2413.1,2412.7,0.55]
[1728502041363,4.14361,2413.4,2413.0,0.8079]
[1728502041555,4.14345,2413.5,2413.1,0.08287082]
[1728502041974,4.1433,2413.6,2413.1,0.08287082]
[1728502042155,0.8234,2414.3,2413.1,0.08287082]
[1728502042484,4.14349,2413.5,2413.2,0.55]
[1728502042645,4.14268,2413.9,2413.1,5.0]
[1728502042646,4.14356,2413.4,2413.1,5.0]
[1728502043179,4.14337,2413.5,2413.1,5.08287012]
[1728502043681,8.28656,2413.6,2413.1,5.08287012]
[1728502043993,0.10084731,2413.4,2413.1,5.08287012]
[1728502044187,4.14337,2413.5,2413.1,5.08287012]
[1728502044369,0.10084731,2413.3,2413.1,5.08287012]
[1728502044883,4.14337,2413.5,2413.1,5.08287012]
[1728502044884,0.10084731,2413.2,2413.1,5.08287012]
[1728502045092,4.14337,2413.5,2413.1,5.63287012]
[1728502045295,0.10084731,2413.2,2413.1,5.63287012]
[1728502045458,4.14337,2413.5,2413.1,5.63287012]
[1728502045790,0.10084731,2413.4,2413.1,5.63287012]
[1728502046006,0.10084731,2413.4,2413.3,0.8075]
[1728502046159,0.10084731,2413.4,2413.3,1.44035543]
[1728502046358,0.10084731,2413.4,2413.3,1.3575]
[1728502046574,4.14337,2413.5,2413.1,5.0]
[1728502046575,8.28684,2413.5,2413.1,5.0]
[1728502046774,0.09902614,2413.4,2413.2,0.55]
[1728502047157,0.09902614,2413.4,2413.2,0.63286693]
[1728502047670,0.09905382,2413.3,2413.2,0.63286693]
[1728502047871,4.14319,2413.6,2413.2,0.63286693]
[1728502048075,4.24252382,2413.5,2413.2,0.63286693]
[1728502048397,0.09905382,2413.5,2413.2,0.63286693]
[1728502048802,0.09905382,2413.5,2413.2,4.77662693]
[1728502049153,4.14295,2413.8,2413.2,4.77662693]
[1728502049359,0.09906173,2413.4,2413.3,5.5129]
[1728502049560,4.14262,2414.0,2413.6,0.55]
[1728502049787,8.28521,2414.0,2413.7,0.8192]
[1728502049960,0.09906173,2413.9,2413.7,0.8192]
[1728502051378,4.14229,2414.2,2413.8,0.08285024]
[1728502052098,4.142,2414.3,2413.8,0.08285024]
[1728502052259,4.14165,2414.5,2413.9,0.55]
[1728502052458,4.14165,2414.5,2414.0,4.22532752]
[1728502052660,4.14155,2414.6,2414.1,0.7812]
[1728502052886,4.14166,2414.5,2414.1,0.7812]
[1728502053055,4.14166,2414.5,2414.1,0.86403516]
[1728502053275,4.14139,2414.7,2414.1,10.00634516]
[1728502053479,4.1413,2414.7,2414.6,0.7812]
[1728502053789,0.7818,2415.5,2414.6,0.7812]
[1728502053790,8.28239,2414.8,2414.6,0.7812]
[1728502053987,4.14114,2414.8,2414.6,0.7812]
[1728502054228,4.24076662,2414.7,2414.4,0.55]
[1728502054585,4.14148,2414.6,2414.3,0.7812]
[1728502054819,0.09932662,2414.7,2414.0,7.38]
[1728502054820,4.14201,2414.3,2414.1,0.55]
[1728502055023,4.14201,2414.3,2414.0,0.7812]
[1728502055189,4.14177,2414.5,2414.0,0.7812]
[1728502055399,4.14183,2414.4,2414.0,0.86403855]
[1728502055640,4.14199,2414.3,2414.0,0.86403855]
[1728502055784,4.14233,2414.1,2413.9,5.0]
[1728502055991,4.1428,2413.9,2413.7,8.38390536]
[1728502056233,4.14284,2413.8,2413.7,8.38390536]
[1728502056414,4.2423642,2413.8,2413.7,0.20750536]
[1728502056920,5.08085062,2413.8,2413.7,0.20750536]
[1728502057799,0.93801062,2413.8,2413.7,0.20750536]
[1728502058315,0.0995242,2413.8,2413.7,0.20750536]
[1728502058686,4.14251,2414.0,2413.7,0.20750536]
[1728502058909,0.09964686,2413.9,2413.7,0.20750536]
[1728502059303,4.14234,2414.1,2413.8,0.6328497]
[1728502059514,4.1421,2414.3,2413.9,0.63284392]
[1728502059720,4.14182,2414.4,2414.0,0.7678]
[1728502059885,4.14182,2414.4,2414.0,0.85063937]
[1728502060097,4.14198,2414.3,2414.0,0.85063937]
[1728502061431,0.0997259,2414.2,2414.0,0.85063937]
[1728502061659,0.0997259,2414.2,2414.1,1.3397]
[1728502061861,4.14137,2414.7,2414.2,5.55]
[1728502062011,4.14137,2414.7,2414.3,0.08282702]
[1728502062207,0.414084,2414.9,2414.2,5.55]
[1728502062426,4.1414,2414.7,2414.2,5.55]
[1728502062633,4.14165,2414.5,2414.2,5.55]
[1728502062943,4.969955,2414.5,2414.2,5.55]
[1728502063307,4.555114,2414.9,2414.3,4.22467193]
[1728502063548,0.414084,2414.9,2414.5,5.55]
[1728502063765,0.414084,2414.9,2414.6,0.89881846]
[1728502064057,4.14086,2415.0,2414.6,0.89881846]
[1728502065370,4.14071,2415.1,2414.6,5.04028846]
[1728502065572,8.28143,2415.1,2414.6,5.04028846]
[1728502065714,4.14091,2415.0,2414.6,0.816]
[1728502066046,4.14098,2414.9,2414.6,0.816]
[1728502066254,4.14116,2414.8,2414.6,0.816]
[1728502066544,4.14116,2414.8,2414.5,5.0]
[1728502066545,4.14137,2414.7,2414.5,5.0]
[1728502066754,4.14116,2414.8,2414.5,5.0]
[1728502066955,8.28239,2414.8,2414.5,5.0]
[1728502067257,9.1934777,2414.8,2414.5,5.0]
[1728502067412,5.0522177,2414.8,2414.5,5.0]
[1728502068028,4.14096,2414.9,2414.5,5.0]
[1728502068226,4.1408,2415.0,2414.5,9.14164]
[1728502068565,4.141,2414.9,2414.6,0.08282141]
[1728502068717,4.141,2414.9,2414.5,5.0]
[1728502072376,8.2817,2415.0,2414.5,9.14155]
[1728502072579,4.14095,2414.9,2414.5,5.0]
[1728502073696,4.14095,2414.9,2414.4,5.11652833]
[1728502073697,4.14125,2414.8,2414.4,0.97481833]
[1728502073853,0.10031458,2414.7,2414.4,1.05764562]
[1728502074054,4.14089,2415.0,2414.5,9.22438729]
[1728502074256,4.24138458,2414.9,2414.5,5.0]
[1728502074771,0.10031458,2414.9,2414.6,0.0828194]
[1728502075066,4.24136458,2414.9,2414.5,5.0]
[1728502075997,4.24136458,2414.9,2414.5,9.14162]
[1728502076491,4.24136458,2414.9,2414.5,5.0]
[1728502076728,5.02083436,2414.8,2414.4,0.97481833]
[1728502077098,0.10033828,2414.7,2414.4,0.97481833]
[1728502077299,4.1412,2414.8,2414.4,5.11660833]
[1728502077596,0.10033828,2414.7,2414.5,7.22444447]
[1728502077997,4.14096,2414.9,2414.5,7.14162]
[1728502078232,0.10033828,2414.6,2414.5,7.14162]
[1728502078431,4.14096,2414.9,2414.5,8.00576734]
[1728502078735,0.10033828,2414.8,2414.5,8.00576734]
[1728502079900,4.14096,2414.9,2414.5,8.00576734]
[1728502080115,0.10033828,2414.8,2414.5,8.00576734]
[1728502080314,5.07968711,2414.8,2414.5,0.86414734]
[1728502080521,9.22089711,2414.8,2414.6,0.86414734]
[1728502080722,9.22089711,2414.8,2414.5,5.00569734]
[1728502080723,0.93855711,2414.8,2414.5,5.00569734]
[1728502081024,0.93855711,2414.8,2414.6,0.86414734]
[1728502081236,0.93855711,2414.8,2414.4,5.11662833]
[1728502081237,4.14151,2414.6,2414.4,0.20591833]
[1728502081409,4.14151,2414.6,2414.1,0.86414734]
[1728502081410,4.14202,2414.3,2414.1,0.86414734]
[1728502081612,4.14215,2414.2,2414.0,0.86414734]
[1728502081912,4.24277668,2414.1,2413.9,0.86414734]
[1728502082314,4.1425,2414.0,2413.9,0.86414734]
[1728502082661,4.24264866,2414.0,2413.9,0.86278864]
[1728502082953,5.08116053,2414.0,2413.9,1.29743702]
[1728502083137,0.93866053,2414.0,2413.9,1.29743702]
[1728502083711,5.08116053,2414.0,2413.9,1.29743702]
[1728502083964,0.10014866,2414.0,2413.9,1.70685274]
[1728502084246,0.10014866,2414.0,2413.9,1.78969585]
[1728502084454,4.1419,2414.4,2413.9,11.38067683]
[1728502084652,4.1419,2414.4,2414.2,0.86435773]
[1728502084856,0.09971008,2414.3,2414.2,1.2965366]
[1728502085042,4.24169008,2414.3,2414.2,1.2965366]
[1728502086435,4.24169008,2414.3,2414.1,1.72871547]
[1728502086617,4.24169008,2414.3,2414.2,1.29821167]
[1728502086817,4.24169008,2414.3,2414.2,0.7834]
[1728502086818,0.09971008,2414.3,2414.2,0.7834]
[1728502087015,0.09971008,2414.3,2414.2,15.60371552]
[1728502087320,4.14135,2414.7,2414.3,4.14193]
[1728502087550,4.14135,2414.7,2414.6,1.29804233]
[1728502088347,4.14147,2414.6,2414.5,1.29804233]
[1728502088717,4.14147,2414.6,2414.5,0.86599804]
[1728502088917,5.06946208,2414.6,2414.5,0.86599804]
[1728502090257,4.14164,2414.5,2414.4,0.86599804]
[1728502090413,4.14164,2414.5,2414.3,1.29804233]
[1728502090751,4.14164,2414.5,2414.4,0.86650199]
[1728502092828,4.14157,2414.6,2414.4,1.69480199]
[1728502093132,4.14157,2414.6,2414.5,0.86650199]
[1728502094457,4.14164,2414.5,2414.4,0.86743142]
[1728502096587,4.14151,2414.6,2414.4,0.86743142]
[1728502096768,4.14137,2414.7,2414.3,5.09222361]
[1728502096945,8.28278,2414.7,2414.4,0.86743142]
[1728502097440,4.14162,2414.6,2414.3,0.86743142]
[1728502098340,0.10004597,2414.5,2414.3,0.86743142]
[1728502099381,4.24168597,2414.5,2414.3,0.86743142]
[1728502099581,4.24168597,2414.5,2414.2,6.68283142]
[1728502099941,4.14164,2414.5,2414.2,6.68283142]
[1728502100142,0.10006572,2414.4,2414.3,5.09223309]
[1728502100377,0.10006572,2414.4,2414.3,0.08283167]
[1728502100581,4.14148,2414.6,2414.3,5.09280514]
[1728502100752,0.10006572,2414.4,2414.3,5.09279275]
[1728502100960,4.14134,2414.7,2414.3,5.522854]
[1728502101141,4.14134,2414.7,2414.4,5.0097562]
[1728502101345,4.14121,2414.8,2414.4,5.0097562]
[1728502101550,4.14121,2414.8,2414.5,0.8679462]
[1728502101844,4.14121,2414.8,2414.4,5.0097562]
[1728502102039,8.28205,2414.9,2414.6,0.7747]
[1728502102245,8.28205,2414.9,2414.6,0.85751913]
[1728502102246,4.14099,2414.9,2414.6,0.85751913]
[1728502102673,4.93165,2415.3,2414.6,0.85751913]
[1728502102880,4.14084,2415.0,2414.6,1.7255154]
[1728502103094,4.14097,2414.9,2414.6,1.7255154]
[1728502103468,4.14097,2414.9,2414.7,0.86799627]
[1728502103672,4.14112,2414.8,2414.7,0.86799627]
[1728502103978,4.14147,2414.6,2414.5,5.0]
[1728502104192,4.14147,2414.6,2414.5,5.86822822]
[1728502104381,4.24163448,2414.6,2414.5,6.07922711]
[1728502104696,4.14147,2414.6,2414.5,0.21099889]
[1728502104991,0.10016448,2414.6,2414.5,1.07922711]
[1728502105763,4.24163448,2414.6,2414.5,1.07922711]
[1728502106481,4.24163448,2414.6,2414.5,0.21099889]
[1728502106878,4.24163448,2414.6,2414.5,1.07922711]
[1728502110910,4.24163448,2414.6,2414.5,1.5129933]
[1728502111208,0.10016448,2414.6,2414.5,1.07967099]
[1728502111402,0.10016448,2414.6,2414.5,1.5129933]
[1728502111782,4.24163448,2414.6,2414.5,1.07968676]
[1728502112009,4.24163448,2414.6,2414.5,1.5129933]
[1728502112868,4.24163448,2414.6,2414.5,0.21099889]
[1728502113070,4.24163448,2414.6,2414.5,1.07967383]
[1728502114069,0.10016448,2414.6,2414.5,1.07967383]
[1728502114271,0.10016448,2414.6,2414.5,1.5129933]
[1728502115823,0.10016448,2414.6,2414.5,2.3010933]
[1728502116002,0.10016448,2414.6,2414.5,2.38392052]
[1728502116310,4.14113,2414.8,2414.5,7.38392052]
[1728502116615,4.14113,2414.8,2414.7,0.86864287]
[1728502117771,9.71743223,2415.2,2414.5,1.07964176]
[1728502118034,4.14145,2414.7,2414.6,0.86864287]
[1728502119013,4.24161843,2414.7,2414.6,0.86864287]
[1728502119191,4.24161843,2414.7,2414.6,1.30296861]
[1728502119620,4.24161843,2414.7,2414.6,0.86863061]
[1728502121395,0.10016843,2414.7,2414.6,0.86863061]
[1728502121631,0.10016843,2414.7,2414.5,9.43546214]
[1728502121836,4.14033,2415.3,2414.8,9.14109]
[1728502122015,4.14047,2415.2,2414.9,0.08280791]
[1728502123237,4.14063,2415.1,2414.9,0.08280791]
[1728502123607,4.14034,2415.3,2414.9,0.89651217]
[1728502123825,4.1402,2415.4,2415.0,4.14077]
[1728502124125,4.1402,2415.4,2415.1,0.08280192]
[1728502125535,8.28042,2415.4,2415.1,0.08280192]
[1728502125732,4.1402,2415.4,2415.1,0.08280192]
[1728502125930,4.14027,2415.3,2415.1,0.08280192]
[1728502126499,4.14044,2415.2,2415.0,0.7984]
[1728502126702,0.828074,2415.2,2414.8,5.0]
[1728502126900,0.828074,2415.2,2414.7,0.7717]
[1728502126901,4.14064,2415.1,2414.7,0.7717]
[1728502127103,4.14096,2414.9,2414.7,0.7717]
[1728502127404,4.14081,2415.0,2414.7,0.7717]
[1728502127746,4.14099,2414.9,2414.7,0.7717]
[1728502128235,4.14099,2414.9,2414.5,5.98579889]
[1728502128539,4.14099,2414.9,2414.8,0.86835438]
[1728502133956,4.24124533,2414.9,2414.8,0.86835438]
[1728502135440,0.10025533,2414.9,2414.7,1.30253157]
[1728502135652,0.10025533,2414.9,2414.8,0.86893192]
[1728502136128,0.10025533,2414.9,2414.7,1.38534657]
[1728502136339,0.10025533,2414.9,2414.8,1.30253157]
[1728502136536,4.14058,2415.2,2414.8,10.87782876]
[1728502136733,4.14058,2415.2,2415.1,0.86882756]
[1728502137057,4.14058,2415.2,2415.0,0.86882756]
[1728502137246,4.14035,2415.3,2415.1,0.86882756]
[1728502137446,4.14035,2415.3,2415.1,0.95163026]
[1728502137646,4.14035,2415.3,2415.1,0.86882756]
[1728502137848,4.14035,2415.3,2415.1,1.76436974]
[1728502139853,4.14035,2415.3,2415.1,0.89554218]
[1728502140019,4.14035,2415.3,2415.1,1.76436974]
[1728502140223,8.28076,2415.3,2415.1,1.76436974]
[1728502140651,4.14035,2415.3,2415.1,1.76436974]
[1728502140958,8.28071,2415.3,2415.1,1.76436974]
[1728502141165,4.14044,2415.2,2415.1,0.86882756]
[1728502141367,4.14044,2415.2,2415.0,0.86882756]
[1728502142429,4.14061,2415.1,2415.0,0.9309433]
[1728502142862,4.14061,2415.1,2415.0,0.86882756]
[1728502143829,4.14044,2415.2,2415.0,0.86882756]
[1728502144168,4.14044,2415.2,2415.1,0.86882756]
[1728502146064,4.14061,2415.1,2415.0,1.07429224]
[1728502146860,4.14043,2415.3,2415.0,1.88923774]
[1728502147062,4.14043,2415.3,2415.0,1.97204435]
[1728502148470,4.14047,2415.2,2415.0,1.97204435]
[1728502148666,4.14047,2415.2,2415.0,1.88923774]
[1728502149053,0.09718884,2415.1,2415.0,1.88923774]
[1728502149756,0.09718884,2415.1,2415.0,1.10357258]
[1728502150280,0.09718884,2415.1,2415.0,1.07381789]
[1728502150741,0.09718884,2415.1,2415.0,0.20546468]
[1728502151143,4.14048,2415.2,2415.0,1.0737995]
[1728502151370,0.09718884,2415.1,2415.0,1.0737995]
[1728502152966,0.09718884,2415.1,2415.0,0.20546468]
[1728502153334,0.09718884,2415.1,2415.0,1.07383768]
[1728502153335,4.23779884,2415.1,2415.0,1.07383768]
[1728502154352,5.01479884,2415.1,2415.0,1.07383768]
[1728502154562,10.1722481,2415.1,2414.9,0.868373]
[1728502154731,4.14078,2415.0,2414.9,0.868373]
[1728502155076,4.14095,2414.9,2414.8,0.868373]
[1728502155367,4.1413,2414.7,2414.6,0.868373]
[1728502155770,4.23844129,2414.7,2414.6,0.868373]
[1728502156373,4.14147,2414.6,2414.5,0.868373]
[1728502156558,4.14147,2414.6,2414.4,6.30324134]
[1728502156765,4.14147,2414.6,2414.5,0.21190762]
[1728502157539,4.14147,2414.6,2414.5,1.08065147]
[1728502158365,4.14147,2414.6,2414.5,0.21190762]
[1728502159038,8.77427216,2414.9,2414.5,4.35354762]
[1728502159239,8.77427216,2414.9,2414.5,1.08065147]
[1728502159240,4.1412,2414.8,2414.5,1.08065147]
[1728502159577,4.1412,2414.8,2414.6,0.86874385]
[1728502159785,4.1413,2414.7,2414.6,0.86874385]
[1728502160164,4.14147,2414.6,2414.5,1.08065147]
[1728502161367,4.14147,2414.6,2414.5,1.0805793]
[1728502162952,4.14147,2414.6,2414.5,0.21190762]
[1728502163987,4.23825061,2414.6,2414.5,0.21190762]
[1728502164484,0.09678061,2414.6,2414.5,1.51486806]
[1728502164988,0.09678457,2414.6,2414.5,1.5976901]
[1728502165158,4.14114,2414.8,2414.5,1.5976901]
[1728502165357,0.09678457,2414.7,2414.6,0.86857984]
[1728502165591,4.14114,2414.8,2414.6,0.86857984]
[1728502165751,0.09678457,2414.7,2414.6,0.86857984]
[1728502165954,4.14114,2414.8,2414.6,0.95140019]
[1728502166146,4.1413,2414.7,2414.6,0.86857984]
[1728502166487,4.23808457,2414.7,2414.6,0.86857984]
[1728502166821,4.23808457,2414.7,2414.5,1.08048746]
[1728502166991,4.23808457,2414.7,2414.6,0.86857984]
[1728502168294,4.23808457,2414.7,2414.5,1.08048746]
[1728502168790,4.14147,2414.6,2414.5,1.51486806]
[1728502169587,4.23825457,2414.6,2414.5,1.08044581]
[1728502169791,4.23825457,2414.6,2414.5,1.51486806]
[1728502169977,0.09678457,2414.6,2414.5,1.51486806]
[1728502170179,4.23825457,2414.6,2414.5,1.51486806]
[1728502170492,4.23825457,2414.6,2414.5,1.08045417]
[1728502170643,5.01575457,2414.6,2414.5,1.08045998]
[1728502171785,5.81806544,2414.6,2414.4,0.86855236]
[1728502171942,4.14164,2414.5,2414.4,0.86857305]
[1728502172147,4.2383968,2414.5,2414.4,0.86857305]
[1728502172887,0.0967568,2414.5,2414.4,0.86857305]
[1728502173179,0.0967568,2414.5,2414.4,1.38578838]
[1728502173343,4.2383968,2414.5,2414.4,1.30296044]
[1728502173547,4.2383968,2414.5,2414.2,1.73728059]
[1728502173548,4.2383968,2414.5,2414.3,1.30296044]
[1728502173751,0.0967568,2414.5,2414.4,2.12776044]
[1728502174077,4.14157,2414.6,2414.4,2.12776044]
[1728502174278,4.14157,2414.6,2414.5,0.86844232]
[1728502176962,0.8033,2415.0,2414.5,0.86844232]
[1728502177192,4.93335,2415.2,2414.8,9.14111]
[1728502177489,4.14045,2415.2,2415.0,0.86844232]
[1728502178967,0.09678851,2415.1,2415.0,0.86844232]
[1728502180281,4.23739851,2415.1,2415.0,0.86844232]
[1728502180483,4.14078,2415.0,2414.9,0.86844232]
[1728502180815,4.14095,2414.9,2414.8,0.86844232]
[1728502181012,4.14095,2414.9,2414.7,1.38577795]
[1728502181013,4.14112,2414.8,2414.7,0.86844232]
[1728502181839,4.23821372,2414.8,2414.7,0.86844232]
[1728502182330,5.85323009,2414.8,2414.7,0.86844232]
[1728502182617,4.14164,2414.5,2414.3,1.07231912]
[1728502182915,4.14164,2414.5,2414.2,1.30296044]
[1728502182916,4.92468,2414.3,2414.2,0.86844232]
[1728502183133,4.14215,2414.2,2414.1,0.86844232]
[1728502183283,4.14215,2414.2,2414.0,5.86844232]
[1728502183284,4.14233,2414.1,2414.0,5.86844232]
[1728502183695,4.14233,2414.1,2414.0,5.0]
[1728502183989,4.23935635,2414.1,2414.0,5.0]
[1728502184722,4.1425,2414.0,2413.9,0.86844232]
[1728502185226,4.23929641,2414.0,2413.9,0.86844232]
[1728502185387,4.23929641,2414.0,2413.8,1.07997886]
[1728502186036,8.38190641,2414.0,2413.8,1.07997886]
[1728502186331,4.23929641,2414.0,2413.8,1.07997886]
[1728502186485,4.14267,2413.9,2413.8,1.07997886]
[1728502186923,4.23946641,2413.9,2413.8,0.21153654]
[1728502187224,0.09679641,2413.9,2413.8,0.21153654]
[1728502187811,0.09679641,2413.9,2413.8,1.07921056]
[1728502188493,4.23946641,2413.9,2413.8,0.21153654]
[1728502189791,5.00566641,2413.9,2413.8,0.21153654]
[1728502190016,6.30611227,2413.9,2413.8,0.21153654]
[1728502190191,4.14284,2413.8,2413.7,5.0]
[1728502190711,4.23950949,2413.8,2413.5,0.86767402]
[1728502190912,4.14318,2413.6,2413.5,0.86767402]
[1728502191114,4.14318,2413.6,2413.4,1.62607402]
[1728502191334,4.23984553,2413.6,2413.4,1.62607402]
[1728502191626,4.23984553,2413.6,2413.4,2.59858383]
[1728502191828,4.23984553,2413.6,2413.5,0.20339334]
[1728502192184,0.09666553,2413.6,2413.5,0.20339334]
[1728502194943,4.23984553,2413.6,2413.5,0.20339334]
[1728502195152,0.09666553,2413.6,2413.5,0.20339334]
[1728502195310,0.09666553,2413.6,2413.5,0.98359106]
[1728502195647,0.09615403,2413.6,2413.5,0.98359106]
[1728502196202,4.1428,2413.9,2413.5,5.20980904]
[1728502196399,0.09607866,2413.8,2413.5,5.20980904]
[1728502196638,4.23891866,2413.8,2413.6,0.41872194]
[1728502200217,0.09607866,2413.8,2413.6,5.41872194]
[1728502200639,4.23899866,2413.8,2413.6,5.41872194]
[1728502202370,0.09607866,2413.8,2413.6,5.50157569]
[1728502202575,0.09607866,2413.8,2413.7,7.1064681]
[1728502202772,0.09607866,2413.8,2413.7,31.9091469]
[1728502203054,0.09607866,2413.8,2413.7,22.86823636]
[1728502203252,0.09607866,2413.8,2413.7,10.97110266]
[1728502203457,0.09607866,2413.8,2413.7,9.23879408]
[1728502203630,0.09607866,2413.8,2413.7,10.97110266]
[1728502203832,0.09607866,2413.8,2413.7,9.23879408]
[1728502204021,0.09607866,2413.8,2413.7,10.53811868]
[1728502204627,0.09607866,2413.8,2413.7,10.97110266]
[1728502205359,0.09607866,2413.8,2413.7,9.23879408]
[1728502205518,0.09607866,2413.8,2413.7,6.39516378]
[1728502205718,0.09607866,2413.8,2413.7,5.09578408]
[1728502206032,0.09607866,2413.8,2413.7,5.4120836]
[1728502206243,4.23891866,2413.8,2413.6,6.28502146]
[1728502206450,4.23891866,2413.8,2413.6,5.86629952]
[1728502206767,4.23891866,2413.8,2413.6,5.0]
[1728502206920,4.23891866,2413.8,2413.6,5.86629952]
[1728502207122,4.14301,2413.7,2413.6,5.0]
[1728502207348,4.23891866,2413.8,2413.6,5.0]
[1728502207564,8.38187866,2413.8,2413.6,5.0]
[1728502208015,4.23891866,2413.8,2413.6,5.0]
[1728502208233,4.14301,2413.7,2413.6,5.0]
[1728502208525,5.02281866,2413.8,2413.6,5.0]
[1728502209587,0.09607866,2413.8,2413.6,6.29793933]
[1728502209872,0.09607866,2413.8,2413.7,0.08285043]
[1728502210040,0.09607866,2413.8,2413.7,4.77586043]
[1728502210369,0.09607866,2413.8,2413.7,1.41629952]
[1728502210676,4.23891866,2413.8,2413.6,5.86629952]
[1728502210850,4.23891866,2413.8,2413.6,5.0]
[1728502211037,4.14301,2413.7,2413.6,5.0]
[1728502211234,4.23891866,2413.8,2413.6,5.0]
[1728502212777,8.38188866,2413.8,2413.6,5.0]
[1728502213088,0.09607866,2413.8,2413.6,5.08285377]
[1728502213373,0.09607866,2413.8,2413.7,5.50561]
[1728502213578,0.09607866,2413.8,2413.7,5.58844925]
[1728502213873,0.09607866,2413.8,2413.7,5.50561]
[1728502214077,0.09607866,2413.8,2413.7,6.37190952]
[1728502214408,0.09607866,2413.8,2413.7,5.50561]
[1728502214738,0.09607866,2413.8,2413.7,3.06437126]
[1728502215577,0.09607866,2413.8,2413.7,3.93067078]
[1728502216862,0.09607866,2413.8,2413.7,3.38067078]
[1728502217076,0.09607866,2413.8,2413.7,3.93067078]
[1728502217281,0.09607866,2413.8,2413.7,8.07368078]
[1728502217648,4.14226,2414.2,2414.0,5.0]
[1728502218357,4.14235,2414.1,2414.0,5.0]
[1728502220164,4.14211,2414.3,2414.0,5.0]
[1728502220347,4.14211,2414.3,2414.1,0.08283831]
[1728502220687,4.14211,2414.3,2414.0,5.0]
[1728502221272,0.09636822,2414.2,2414.0,5.0]
[1728502221594,0.09636822,2414.2,2414.0,5.0194023]
[1728502221760,4.14211,2414.3,2414.0,5.0194023]
[1728502222163,0.09636822,2414.2,2414.0,5.0194023]
[1728502222500,4.14211,2414.3,2414.0,5.0194023]